Cogmind - Beta 17.1 @@@ ROGUE MODE // 2026.09.01 @ 18:30:43 Player: Duduxx Result: Destroyed by B-86 Titan with Hardcell Cannon Performance ------------- Evolutions (6) 3000 Regions Visited (14) 2800 Robots Destroyed (144) 720 Value Destroyed (6236) 6236 Prototype IDs (3) 60 Alien Tech Used (0) 0 Bonus (2532) 2532 TOTAL SCORE: 15348 Bonus ------- High Alert Combat Kills 194 Follower Combat Kills 1124 Entered Garrisons 400 Used RIF Installer 1000 Friendly Fire -186 Cogmind --------- Core Integrity 0/1150 Matter 295/300 Energy 92/100 System Corruption 18% Temperature Cool (9) Movement Core (50) Location -4/Factory Parts ------- > --- POWER (2) -------- (None) > --- PROPULSION (4) --- (None) > --- UTILITY (10) ----- Core Analyzer Armor Integrity Analyzer Hacking Suite Hacking Suite Relay Coupler [NC] (22) Relay Coupler [Grunt] (12) Relay Coupler [Duelist] (22) > --- WEAPON (3) ------- (None) > --- INVENTORY (5) ---- Light Antimatter Reactor Advanced Coolant Injector Relay Coupler [Behemoth] (9) Improved Remote Datajack Peak State ------------ > --- POWER ------------ Angular Momentum Engine Reinforced Fission Core > --- PROPULSION ------- Improved Medium Treads Improved Medium Treads Improved Medium Treads Improved Medium Treads > --- UTILITY ---------- Advanced Heat Sink Advanced Coolant Injector High-capacity Storage Unit Armor Integrity Analyzer Transmission Jammer Layered Medium Armor Plating Hacking Suite Hacking Suite Hacking Suite Relay Coupler [NC] > --- WEAPON ----------- Beamcaster Phase Gun Phase Gun > --- INVENTORY -------- Micro Fission Core Light Antimatter Reactor Light Antimatter Reactor Centrium Wheel Advanced Heat Sink Seismic Detector Energy Filter Hacking Suite Relay Coupler [Grunt] Relay Coupler [Duelist] Relay Coupler [Sentry] Relay Coupler [Hunter] Relay Coupler [Heavy] Relay Coupler [Behemoth] Variable Charge Gun Phase Gun Long-range Proton Cannon Matter Neutralizer Improved Remote Datajack Blade Saw [Rating: 96] Favorites ----------- Power Improved Ion Engine Engine Improved Ion Engine Power Core Reinforced Fission Core Reactor Antimatter Reactor Propulsion Armored Treads Treads Armored Treads Leg Carbon-fiber Leg Wheel Armored Huge Wheel Utility Hacking Suite Device Seismic Detector Storage High-capacity Storage Unit Processor Advanced Targeting Computer Hackware Hacking Suite Protection Layered Medium Armor Plating Weapon Spread Laser Energy Gun Spread Laser Energy Cannon Heavy Plasma Cannon Ballistic Gun Light Assault Rifle Ballistic Cannon Advanced Assault Cannon Launcher Rocket Launcher Special Weapon Improved Remote Datajack Slashing Weapon Axe Piercing Weapon Spear Special Melee Weapon Improved Datajack Build | -11 -10 -9 -8 -7 -7 -7 -7 -7 -6 -6 -6 -5 -5 -4 ------- Run | Yrd Mat Mat Mat Fac Gar Fac Low Low Fac Gar Fac Fac Ext Fac Slots Evolved 12 | . . 2 2 2 . . . . 2 . . 2 . 2 Power 1 | . . 1 . . . . . . . . . . . . Propulsion 2 | . . . 1 1 . . . . . . . . . . Utility 8 | . . . 1 1 . . . . 2 . . 2 . 2 Weapon 1 | . . 1 . . . . . . . . . . . . Parts Attached 163 | 8 1 4 16 4 21 4 5 . 9 45 . 11 4 31 Power 26 | 1 . 3 3 . 3 1 2 . 1 8 . 1 1 2 Engine 18 | 1 . 3 3 . 2 1 1 . 1 5 . 1 . . Core 5 | . . . . . 1 . 1 . . 1 . . 1 1 Reactor 3 | . . . . . . . . . . 2 . . . 1 Propulsion 43 | 2 . . 6 1 6 . 1 . 2 11 . 4 1 9 Treads 20 | 2 . . 6 1 1 . 1 . . 1 . 4 1 3 Leg 7 | . . . . . . . . . . 6 . . . 1 Wheel 16 | . . . . . 5 . . . 2 4 . . . 5 Hover . | . . . . . . . . . . . . . . . Flight . | . . . . . . . . . . . . . . . Utility 41 | 2 1 1 3 1 2 . 1 . 3 11 . 4 1 11 Device 17 | 1 . . 1 . 2 . . . 1 6 . 3 . 3 Storage 4 | 1 1 1 . . . . . . . . . . . 1 Processor 6 | . . . 2 . . . . . 1 1 . . 1 1 Hackware 8 | . . . . 1 . . . . . 1 . 1 . 5 Protection 6 | . . . . . . . 1 . 1 3 . . . 1 Artifact . | . . . . . . . . . . . . . . . Weapon 53 | 3 . . 4 2 10 3 1 . 3 15 . 2 1 9 Energy Gun 30 | 1 . . 4 2 5 3 . . . 7 . 1 1 6 Energy Cannon 7 | . . . . . . . . . 1 3 . 1 . 2 Ballistic Gun 2 | 2 . . . . . . . . . . . . . . Ballistic Cannon 5 | . . . . . . . 1 . 2 2 . . . . Launcher 3 | . . . . . 2 . . . . 1 . . . . Special Weapon 1 | . . . . . . . . . . . . . . 1 Impact Weapon . | . . . . . . . . . . . . . . . Slashing Weapon 3 | . . . . . 2 . . . . 1 . . . . Piercing Weapon 1 | . . . . . 1 . . . . . . . . . Special Melee Weapon 1 | . . . . . . . . . . 1 . . . . Unidentified Prototypes 1 | . . . . . . 1 . . . . . . . . Corrupted Parts 1 | . . . . . . . 1 . . . . . . . System Corruption 6 | . . . . . . . 6 . . . . . . . Parts Lost 103 | . . . 7 . 21 . 7 . 5 33 . . . 30 Power 17 | . . . 2 . 4 . 1 . 1 6 . . . 3 Propulsion 30 | . . . . . 5 . 2 . 2 9 . . . 12 Utility 19 | . . . 1 . 2 . 1 . 1 6 . . . 8 Weapon 37 | . . . 4 . 10 . 3 . 1 12 . . . 7 Highest Loss Streak 14 | . . . 2 . 9 . 4 . 2 14 . . . 8 To Critical Strikes . | . . . . . . . . . . . . . . . Average Backups 17 | 3 8 15 19 17 17 10 14 15 18 15 20 19 20 16 Power 1 | . 1 1 . . 1 . 1 1 1 1 2 2 2 2 Propulsion 1 | 1 2 2 3 3 3 . . . . 1 1 1 2 1 Utility 8 | . 1 4 8 8 7 6 9 10 10 7 12 11 12 8 Weapon 4 | . 3 6 6 6 4 3 3 4 4 4 3 2 3 3 Tool/Special . | . . . . . . . . . . . . . . . Unused Backups 30 | . 1 3 6 2 . . . . 3 1 . 3 . 11 Power 10 | . . 1 . . . . . . 2 . . 2 . 5 Propulsion 2 | . . . . . . . . . . . . 1 . 1 Utility 14 | . . 2 4 1 . . . . 1 1 . . . 5 Weapon 4 | . 1 . 2 1 . . . . . . . . . . Tool/Special . | . . . . . . . . . . . . . . . Average Slot Usage (%) 92 | . 100 99 99 99 95 81 70 69 76 88 86 93 99 96 Engine 10 | . 14 22 17 15 11 12 10 7 6 8 13 11 8 2 Core 1 | . . . . . 2 . . 7 2 . . . 2 5 Treads 14 | . 28 22 26 30 24 . 1 7 4 . . 15 23 15 Leg 2 | . . . . . . . . . . 12 13 3 . . Wheel 3 | . . . . . 2 23 15 7 7 5 6 1 . 3 Device 11 | . 14 11 9 7 6 7 3 . 4 8 13 20 21 17 Storage 6 | . 14 11 9 7 7 7 7 7 6 6 6 5 5 4 Processor 5 | . . . 9 7 7 7 7 7 11 6 . . . 5 Hackware 9 | . . . . 6 7 7 7 7 6 11 13 16 17 23 Protection 1 | . . . . . . . 2 7 6 4 6 1 . 1 Energy Gun 11 | . . 10 21 23 20 11 8 . . 9 . 1 4 12 Energy Cannon 2 | . . . . . . . . . . 3 6 7 10 1 Ballistic Gun 2 | . 28 22 5 . . . . . . . . . . . Ballistic Cannon 1 | . . . . . . . 2 7 15 1 6 3 . . Peak Build Rating 96 | 7 9 14 30 39 47 33 33 30 45 69 65 76 80 96 Average Rating 49 | 5 8 11 26 37 38 28 26 30 39 60 64 70 76 85 On Entrance 35 | . 7 9 14 30 39 23 33 30 30 36 65 64 76 72 Avg Prop Armor Cover (%) 7 | . . . . . 14 . 9 9 7 7 7 7 . 5 Naked Turns . | . . . . . . . . . . . . . . . Heaviest Build 116 | 11 26 59 66 64 66 66 67 65 78 97 97 98 116 102 Greatest Support 120 | 40 40 40 60 80 80 36 36 16 36 65 28 120 120 120 Greatest Overweight (x) 9 | . . 1 1 . 1 1 4 4 4 9 3 3 . 4 Average Overweight (x) 1 | . . . . . . 1 1 4 3 1 3 1 . . Largest Inventory Capacity 20 | 8 15 20 20 20 20 20 20 20 20 20 20 20 20 20 Average Capacity 19 | 7 12 17 20 20 20 20 20 20 20 20 20 20 20 17 Most Carried 20 | 4 14 20 20 20 20 15 16 15 20 20 20 20 20 20 Average Carried 17 | 3 8 15 19 17 17 10 14 15 18 16 20 19 20 16 Final Capacity 20 | 8 15 20 20 20 20 20 20 20 20 20 20 20 20 5 Final Carried 20 | 4 14 20 20 20 9 15 15 15 20 20 20 20 20 4 Class Distribution -------------------- 29% | Gunner 21% | Bothacker-Gunner 14% | Mutant 9% | Scavenger-Gunner 6% | Bothacker-Tank 4% | Skirmisher 3% | Scavenger-Mutant 3% | Scavenger-Tank Dominant Class ---------------- Mutant | -10/Materials Gunner | -9/Materials Gunner | -8/Materials Gunner | -7/Factory Gunner | -7/Garrison Mutant | -7/Factory Mutant | -7/Lower Caves Mutant | -7/Lower Caves Skirmisher | -6/Factory Scavenger-Gunner | -6/Garrison Bothacker-Tank | -6/Factory Bothacker-Gunner | -5/Factory Bothacker-Gunner | -5/Extension Bothacker-Gunner | -4/Factory Resources | -11 -10 -9 -8 -7 -7 -7 -7 -7 -6 -6 -6 -5 -5 -4 ----------- Run | Yrd Mat Mat Mat Fac Gar Fac Low Low Fac Gar Fac Fac Ext Fac Matter Collected 3435 | 220 80 52 320 40 369 98 193 . 333 995 . 162 154 419 Remotely . | . . . . . . . . . . . . . . . Salvage Created 6215 | 22 90 219 813 216 996 98 78 . 149 1232 . 368 248 1686 Parts 261 | 4 4 15 41 5 38 7 2 . 14 29 . 25 9 68 Haulers Intercepted 1 | . . . . . . . . . . . . . . 1 Recyclers Shooed 3 | . . . . . . . . . . . . . . 3 Parts Field Recycled . | . . . . . . . . . . . . . . . Retrieved Matter . | . . . . . . . . . . . . . . . Parts Self-Destructed 8 | . . . . . . . 8 . . . . . . . Prevented . | . . . . . . . . . . . . . . . Parts Restored . | . . . . . . . . . . . . . . . Kills | -11 -10 -9 -8 -7 -7 -7 -7 -7 -6 -6 -6 -5 -5 -4 ------- Run | Yrd Mat Mat Mat Fac Gar Fac Low Low Fac Gar Fac Fac Ext Fac Combat Hostiles Destroyed 118 | . 2 6 21 4 29 1 2 . 5 16 . 5 4 23 Melee 2 | . . . . . . . . . . 2 . . . . Guns 77 | . 2 5 20 3 24 1 . . . 3 . . 1 18 Cannons 23 | . . . . . . . 2 . 5 8 . 3 2 3 AOE 11 | . . 1 1 1 4 . . . . 2 . 1 . 1 Classes Destroyed 15 | 1 1 4 3 . . . . . 2 2 . 1 . 1 Worker 5 | . . . 1 . . . . . 1 . . 1 . 2 Builder 5 | . . . . . . . . . 2 . . 1 . 2 Tunneler 2 | 1 . . . . . . . . . . . . . 1 Hauler 1 | . . . . . . . . . . . . . . 1 Operator 4 | . . 1 1 . . 1 . . 1 . . . . . Watcher 8 | . . 1 1 . . . . . 1 1 . 1 . 3 Swarmer 29 | . . 4 3 . 16 . . . . 2 . 1 . 3 Grunt 51 | . 2 1 12 2 11 . 2 . 3 7 . 1 2 8 Brawler 3 | . . . . . . . . . . 1 . . . 2 Duelist 4 | . . . 1 1 . . . . . 2 . . . . Sentry 14 | . . 1 4 1 2 1 . . . 3 . 1 1 . Hunter 4 | . . . 1 . . . . . 1 . . . . 2 Programmer 11 | . . . . . . . . . 1 . . 2 . 8 Behemoth 2 | . . . . . . . . . . 1 . . 1 . Infiltrator 1 | . . . . . . . . . . . . 1 . . Best Kill Streak 7 | 1 2 5 4 4 7 1 2 . 3 5 . 5 2 5 Combat Bots Only 7 | . 2 5 4 4 7 1 2 . 3 5 . 4 2 4 Max Kills in Single Turn 2 | 1 1 1 2 1 2 1 1 . 2 2 . 2 1 2 Gunslinging 1 | . . . . . 1 . . . . . . . . . Exploded 2 | . . 1 1 1 2 . . . . 1 . 1 . 1 Melee 1 | . . . . . . . . . . 1 . . . . Uniques/NPCs Destroyed . | . . . . . . . . . . . . . . . Combat | -11 -10 -9 -8 -7 -7 -7 -7 -7 -6 -6 -6 -5 -5 -4 -------- Run | Yrd Mat Mat Mat Fac Gar Fac Low Low Fac Gar Fac Fac Ext Fac Hostile Shots Fired 1417 | . 9 22 109 22 379 48 27 . 86 324 . 19 24 348 Missed 410 | . 2 4 20 7 109 22 9 . 19 91 . 5 7 115 Hits 1007 | . 7 18 89 15 270 26 18 . 67 233 . 14 17 233 Melee 18 | . . . 3 . . . 2 . . 13 . . . . Projectile 989 | . 7 18 86 15 270 26 16 . 67 220 . 14 17 233 AOE 3 | . . . . . . . . . . . . . . 3 Critical Strikes 36 | . . . 2 . 4 . . . 1 11 . 1 1 16 Actively Blocked 2 | . . . . . . . . . . . . . . 2 Damage Taken 15660 | . 94 153 1524 138 2808 149 331 . 1047 3612 . 296 508 5000 Core 2621 | . . 8 146 20 438 21 . . 169 620 . 23 23 1153 Absorbed by Shields . | . . . . . . . . . . . . . . . Redirected to Shielding 51 | . . . . . . . . . . 51 . . . . Core Remaining (%) 72 | 100 100 98 73 . . . . 31 . . 7 . 95 . Volleys Fired 401 | 4 6 16 61 6 52 4 15 . 32 78 . 8 17 102 Largest 3 | 2 2 3 3 3 3 2 3 . 3 3 . 3 3 3 Hottest 289 | 40 40 80 175 175 214 100 165 . 170 289 . 280 265 283 Shots Fired 989 | 8 12 48 181 18 140 8 32 . 75 128 . 21 47 271 Gun 752 | 8 12 48 181 18 135 8 23 . . 68 . 6 16 229 Cannon 222 | . . . . . . . 8 . 75 53 . 14 31 41 Launcher 14 | . . . . . 5 . 1 . . 7 . 1 . . Special 1 | . . . . . . . . . . . . . . 1 Kinetic 199 | 8 12 32 46 . . . 8 . 73 19 . 1 . . Thermal 612 | . . . 85 7 128 . 8 . 2 72 . 19 47 244 Explosive 14 | . . . . . 5 . 1 . . 7 . 1 . . Electromagnetic 163 | . . 16 50 11 7 8 15 . . 30 . . . 26 Robot Hit Streak 24 | 3 5 7 16 9 24 4 5 . 6 14 . 7 12 9 Robot Miss Streak 7 | 2 2 6 7 3 4 1 6 . 3 4 . 6 3 6 Penetration Max . | . . . . . . . . . . . . . . . Secondary Targets 17 | . . 1 3 . 6 . . . . . . . . 7 Max Gunslinging Chain 1 | . . 1 1 . 1 . . . . . . . . 1 Shots Hit Robots 698 | 4 7 20 138 14 127 8 17 . 41 122 . 11 35 154 Core Hits 427 | 3 3 11 128 9 108 4 7 . 15 53 . 11 12 63 Critical Kills 5 | . 1 . . . . . . . . 1 . 1 1 1 Critical Parts Destroyed . | . . . . . . . . . . . . . . . Critical Strikes 40 | . 1 . . 2 4 . 2 . 6 8 . 3 6 8 Burn 17 | . . . . . 3 . . . . . . 2 5 7 Meltdown 4 | . . . . . . . . . . 1 . 1 1 1 Destroy 1 | . 1 . . . . . . . . . . . . . Blast 9 | . . . . . . . 2 . 6 1 . . . . Corrupt 2 | . . . . 2 . . . . . . . . . . Sever 1 | . . . . . 1 . . . . . . . . . Impale 6 | . . . . . . . . . . 6 . . . . Melee Attacks 95 | . . . . . 22 2 . . . 65 . . 5 1 Impact . | . . . . . . . . . . . . . . . Slashing 19 | . . . . . 15 . . . . 3 . . . 1 Piercing 69 | . . . . . 7 2 . . . 60 . . . . Sneak Attacks 8 | . . . . . . 1 . . . 2 . . 5 . Combat Hostiles . | . . . . . . . . . . . . . . . Follow-up Attacks 3 | . . . . . 3 . . . . . . . . . Damage Inflicted 18580 | 38 56 309 2080 424 3266 198 355 . 1154 4417 . 551 953 4779 Guns 9491 | 38 56 234 1995 232 2072 90 172 . . 750 . 58 203 3591 Cannons 4305 | . . . . . . . 164 . 1154 1152 . 341 736 758 Explosions 1644 | . . 75 84 192 406 . 19 . . 567 . 146 . 155 Melee 2844 | . . . . . 788 108 . . . 1948 . . . . Ramming 296 | . . . 1 . . . . . . . . 6 14 275 Kinetic 2206 | 38 56 56 205 . . . 164 . 1154 483 . 50 . . Thermal 10408 | . . 75 1297 312 2011 . 75 . . 1177 . 349 939 4173 Explosive 1138 | . . . . . 406 . 19 . . 567 . 146 . . Electromagnetic 1688 | . . 178 577 112 61 90 97 . . 242 . . . 331 Impact . | . . . . . . . . . . . . . . . Slashing 788 | . . . . . 788 . . . . . . . . . Piercing 2056 | . . . . . . 108 . . . 1948 . . . . Highest Corruption 18 | . . . . . . 1 7 7 2 2 2 . . 18 Average Corruption 4 | . . . . . . 1 6 7 1 2 2 . . 6 Corruption Purged . | . . . . . . . . . . . . . . . Corruption Blocked . | . . . . . . . . . . . . . . . Effects 110 | . . . . . . . 25 5 5 31 . . . 44 Message Errors 25 | . . . . . . . 8 . . 8 . . . 9 Matter Fused 26 | . . . . . . . 4 3 1 7 . . . 11 Heat Flow Errors 17 | . . . . . . . 6 . . 5 . . . 6 Energy Discharges 10 | . . . . . . . 3 1 1 2 . . . 3 Parts Fused 3 | . . . . . . . . 1 . 1 . . . 1 Data Loss (minor) 10 | . . . . . . . 1 . 1 2 . . . 6 Data Loss (major) 7 | . . . . . . . . . 1 4 . . . 2 Misfires 4 | . . . . . . . 2 . . 1 . . . 1 Alerts 2 | . . . . . . . . . . 1 . . . 1 Misdirections 2 | . . . . . . . . . . . . . . 2 Weapon Failures 4 | . . . . . . . 1 . 1 . . . . 2 Overload Shots . | . . . . . . . . . . . . . . . Overflow Damage 117 | . . 4 . . 12 . . . 34 26 . . . 41 Projectiles 62 | . . . . . . . . . 34 15 . . . 13 Explosions 30 | . . 4 . . 12 . . . . . . . . 14 Melee 25 | . . . . . . . . . . 11 . . . 14 Knockbacks 17 | . . . . . . . . . 13 2 . . . 2 Impact 2 | . . . . . . . . . . . . . . 2 Kinetic 14 | . . . . . . . . . 12 2 . . . . Secondary 1 | . . . . . . . . . 1 . . . . . Self-Inflicted Damage 373 | . . . 148 . 49 . . . . 22 . . . 154 Shots 6 | . . . 3 . 1 . . . . 1 . . . 1 Rammed 22 | . . . 1 . . . . . . . . 1 1 19 Targets Rammed 25 | . . . 1 . . . . . . . . 2 1 21 Kicked . | . . . . . . . . . . . . . . . Crushed 3 | . . . . . . . . . . . . 1 . 2 Highest Temperature 760 | . 15 110 531 99 437 4 251 . 292 760 . 294 656 426 Average Temperature 131 | . 6 47 124 43 160 3 81 . 98 159 . 115 202 126 Received Heat Transfer 3885 | . 54 15 549 54 801 12 63 . 300 1130 . 9 443 455 Effects 57 | . . . 12 . 11 . 4 . . 16 . . 13 1 Shutdowns 11 | . . . 4 . 1 . . . . 2 . . 4 . Energy Bleed 7 | . . . 1 . 1 . 1 . . 2 . . 2 . Interference 17 | . . . . . 3 . 3 . . 7 . . 4 . Matter Decay 7 | . . . 1 . 3 . . . . 1 . . 1 1 Short Circuit 4 | . . . . . 1 . . . . 1 . . 2 . Damage (minor) 1 | . . . 1 . . . . . . . . . . . Damage (major) 10 | . . . 5 . 2 . . . . 3 . . . . Siege Activations . | . . . . . . . . . . . . . . . Martial Activations . | . . . . . . . . . . . . . . . Shielding Activations . | . . . . . . . . . . . . . . . Robots Disrupted . | . . . . . . . . . . . . . . . Combat Hostiles . | . . . . . . . . . . . . . . . Robots Corrupted 1 | . . . . . . . . . . . . . . 1 Combat Hostiles . | . . . . . . . . . . . . . . . Parts Fried 8 | . . . 4 . . 1 . . . . . . . 3 Impact Corruptions 1 | . . . . . . . . . . . . . . 1 Robots Melted 6 | . . . . . 1 . . . . 1 . 1 1 2 Combat Hostiles 5 | . . . . . 1 . . . . 1 . 1 1 1 Parts Melted 38 | . . . 2 . 7 . . . . 4 . 2 5 18 Heat Transferred 16748 | . . 100 1580 475 3759 . 185 . . 1813 . 698 1970 6168 Parts Sabotaged . | . . . . . . . . . . . . . . . Parts Stolen . | . . . . . . . . . . . . . . . Parts Stripped . | . . . . . . . . . . . . . . . Power Chain Reactions 5 | . . 1 1 2 . . . . . . . . . 1 Alert | -11 -10 -9 -8 -7 -7 -7 -7 -7 -6 -6 -6 -5 -5 -4 ------- Run | Yrd Mat Mat Mat Fac Gar Fac Low Low Fac Gar Fac Fac Ext Fac Maximum Alert Level 4 | . . . . . 3 1 . . . 4 2 1 . 1 Low Security (%) 69 | 100 100 100 100 100 24 . . . 100 28 . 79 100 77 Level 1 14 | . . . . . 19 100 . . . 23 . 20 . 22 Level 2 11 | . . . . . 43 . . . . 29 100 . . . Level 3 3 | . . . . . 12 . . . . 9 . . . . Level 4 1 | . . . . . . . . . . 7 . . . . Level 5 . | . . . . . . . . . . . . . . . High Security . | . . . . . . . . . . . . . . . Max Security . | . . . . . . . . . . . . . . . Peak Influence 1285 | 5 50 115 139 114 805 375 . . 73 1285 674 300 81 266 Initial 674 | . . . 4 45 51 375 . . . 21 674 300 21 11 Average 186 | . 7 44 53 68 410 338 . . 12 461 645 110 25 83 Influence Increases 5369 | 5 50 177 640 109 934 45 145 . 223 1730 . 151 303 857 Destroy 0b10 Robot/C 3100 | . 40 120 420 80 680 20 40 . 100 780 . 100 200 520 Destroy 0b10 Robot/NC 180 | 5 . 10 15 . 10 5 . . 25 30 . 15 15 50 Destroy Leader 396 | . 10 32 102 20 40 10 . . 32 20 . 22 . 108 Allied During Kill 220 | . . . . . 20 . . . . 128 . . 56 16 Successful Hack 40 | . . . . . 12 10 . . . . . . 10 8 Disable Machine 150 | . . 15 30 . . . . . 45 . . . . 60 Anti-Garrison Action 550 | . . . . . 100 . . . . 450 . . . . Destroy Structure 418 | . . . 28 9 57 . . . 21 217 . 14 22 50 Lose Combat Pursuer 315 | . . . 45 . 15 . 105 . . 105 . . . 45 Influence Decreases 5205 | 5 50 166 551 135 293 440 465 . 192 476 671 721 322 718 Entered New Map 1516 | . . . 7 55 23 340 119 . . 10 611 314 23 14 Time Decay 2371 | 5 50 166 494 80 . 100 276 . 146 . 60 407 219 368 Lost Part 1002 | . . . 50 . 210 . 70 . 46 326 . . . 300 Lost Ally 316 | . . . . . 60 . . . . 140 . . 80 36 Squads Dispatched 21 | . 1 1 2 . . 3 . . 5 . . 1 1 7 Investigation 4 | . . . . . . 1 . . . . . . 1 2 Extermination 8 | . . . . . . . . . 2 . . 1 . 5 Reinforcement 7 | . 1 1 2 . . 2 . . 1 . . . . . Assault . | . . . . . . . . . . . . . . . Garrison 2 | . . . . . . . . . 2 . . . . . Intercept . | . . . . . . . . . . . . . . . Searches Triggered . | . . . . . . . . . . . . . . . Construction Impeded 1 | . . . . . . . . . 1 . . . . . Haulers Reinforced . | . . . . . . . . . . . . . . . Active Scanning Responses . | . . . . . . . . . . . . . . . Cargo Convoy Interrupts . | . . . . . . . . . . . . . . . Stealth | -11 -10 -9 -8 -7 -7 -7 -7 -7 -6 -6 -6 -5 -5 -4 --------- Run | Yrd Mat Mat Mat Fac Gar Fac Low Low Fac Gar Fac Fac Ext Fac Distress Signals 5 | . . . 4 . . . . . . 1 . . . . Communications Jammed 33 | . . . . . . . . . . . . . 4 29 Distress Signals 33 | . . . . . . . . . . . . . 4 29 Times Spotted 233 | . 4 11 46 4 37 3 15 . 12 39 . 11 9 42 Peak Tracking Total 8 | . 2 4 5 3 5 2 8 . 5 6 . 4 2 5 Tactical Retreats 17 | . . . 3 . 1 . 5 . . 4 . 1 . 3 ECM-based Alert Blocks 6 | . . . . . . . . . . 3 . 3 . . Traps | -11 -10 -9 -8 -7 -7 -7 -7 -7 -6 -6 -6 -5 -5 -4 ------- Run | Yrd Mat Mat Mat Fac Gar Fac Low Low Fac Gar Fac Fac Ext Fac Traps Triggered 15 | . . . 1 . 2 . . . 1 3 1 2 . 5 Indirectly . | . . . . . . . . . . . . . . . Trap Hack Attempts . | . . . . . . . . . . . . . . . Triggered . | . . . . . . . . . . . . . . . Disarmed . | . . . . . . . . . . . . . . . Reprogrammed . | . . . . . . . . . . . . . . . Reused . | . . . . . . . . . . . . . . . Traps Extracted . | . . . . . . . . . . . . . . . Installed . | . . . . . . . . . . . . . . . Triggered . | . . . . . . . . . . . . . . . Machines | -11 -10 -9 -8 -7 -7 -7 -7 -7 -6 -6 -6 -5 -5 -4 ---------- Run | Yrd Mat Mat Mat Fac Gar Fac Low Low Fac Gar Fac Fac Ext Fac Machines Disabled 12 | . . 1 2 . . . . . 3 2 . . . 4 Max in Single Turn 2 | . . 1 2 . . . . . 1 1 . . . 1 Garrison Relay 3 | . . . . . 1 . . . . 2 . . . . Machines Repaired . | . . . . . . . . . . . . . . . Machines Dismantled . | . . . . . . . . . . . . . . . Machines Sabotaged . | . . . . . . . . . . . . . . . Overloaded Fab Kills . | . . . . . . . . . . . . . . . Hacking | -11 -10 -9 -8 -7 -7 -7 -7 -7 -6 -6 -6 -5 -5 -4 --------- Run | Yrd Mat Mat Mat Fac Gar Fac Low Low Fac Gar Fac Fac Ext Fac Machines Accessed 17 | . 2 1 3 1 2 1 . . 1 1 . . 2 3 Terminals 14 | . 2 1 3 . 2 1 . . . 1 . . 2 2 Fabricators . | . . . . . . . . . . . . . . . Repair Stations . | . . . . . . . . . . . . . . . Recycling Units . | . . . . . . . . . . . . . . . Scanalyzers 1 | . . . . . . . . . . . . . . 1 Garrison Access 2 | . . . . 1 . . . . 1 . . . . . Total Hacks 37 | . 5 3 4 1 3 3 . . 1 2 . . 6 9 Successful 15 | . 3 1 1 1 1 1 . . 1 1 . . 2 3 Failed 22 | . 2 2 3 . 2 2 . . . 1 . . 4 6 Catastrophic 1 | . . . . . . . . . . . . . . 1 Database Lockouts . | . . . . . . . . . . . . . . . Manual 7 | . . . 3 . . 1 . . . . . . . 3 Terminals 31 | . 5 3 4 . 3 3 . . . 2 . . 6 5 Fabricators . | . . . . . . . . . . . . . . . Repair Stations . | . . . . . . . . . . . . . . . Recycling Units . | . . . . . . . . . . . . . . . Scanalyzers 4 | . . . . . . . . . . . . . . 4 Garrison Access 2 | . . . . 1 . . . . 1 . . . . . Terminal Hacks 12 | . 3 1 1 . 1 1 . . . 1 . . 2 2 Record 2 | . 1 . . . . 1 . . . . . . . . Prototype ID Bank 1 | . 1 . . . . . . . . . . . . . Open Door 2 | . . . . . . . . . . . . . 2 . Emergency Access Points 2 | . . . . . . . . . . 1 . . . 1 Alert Level 3 | . 1 1 1 . . . . . . . . . . . Zone Layout 1 | . . . . . . . . . . . . . . 1 Patrol Navigation 1 | . . . . . 1 . . . . . . . . . Fabricator Hacks . | . . . . . . . . . . . . . . . Repair Station Hacks . | . . . . . . . . . . . . . . . Recycling Unit Hacks . | . . . . . . . . . . . . . . . Scanalyzer 1 | . . . . . . . . . . . . . . 1 Insert Component 1 | . . . . . . . . . . . . . . 1 Garrison Access Hacks 2 | . . . . 1 . . . . 1 . . . . . Unlock Access 2 | . . . . 1 . . . . 1 . . . . . Unauthorized Hacks . | . . . . . . . . . . . . . . . Terminals . | . . . . . . . . . . . . . . . Fabricators . | . . . . . . . . . . . . . . . Repair Stations . | . . . . . . . . . . . . . . . Recycling Units . | . . . . . . . . . . . . . . . Scanalyzers . | . . . . . . . . . . . . . . . Garrison Access . | . . . . . . . . . . . . . . . Data Cores Recovered 2 | . . 1 . . . . . . 1 . . . . . Used . | . . . . . . . . . . . . . . . Hacking Detections 12 | . . 1 2 . 2 1 . . . 1 . . 2 3 Full Trace Events 5 | . . 1 . . . 1 . . . . . . 1 2 Feedback Events 1 | . . . . . . 1 . . . . . . . . Corruption 1 | . . . . . . 1 . . . . . . . . Feedback Blocked . | . . . . . . . . . . . . . . . Robot Schematics Acquired . | . . . . . . . . . . . . . . . Robots Built . | . . . . . . . . . . . . . . . Authchips . | . . . . . . . . . . . . . . . Time . | . . . . . . . . . . . . . . . Total Robot Build Rating . | . . . . . . . . . . . . . . . Part Schematics Acquired . | . . . . . . . . . . . . . . . Parts Built . | . . . . . . . . . . . . . . . Authchips . | . . . . . . . . . . . . . . . Time . | . . . . . . . . . . . . . . . Total Part Build Rating . | . . . . . . . . . . . . . . . Part Studies Acquired . | . . . . . . . . . . . . . . . Parts Repaired . | . . . . . . . . . . . . . . . Time . | . . . . . . . . . . . . . . . Parts Recycled . | . . . . . . . . . . . . . . . Recycled Matter . | . . . . . . . . . . . . . . . Retrieved Matter . | . . . . . . . . . . . . . . . Retrieved Components . | . . . . . . . . . . . . . . . Parts Scanalyzed 1 | . . . . . . . . . . . . . . 1 Part Schematics Acquired . | . . . . . . . . . . . . . . . Parts Damaged . | . . . . . . . . . . . . . . . Bothacking | -11 -10 -9 -8 -7 -7 -7 -7 -7 -6 -6 -6 -5 -5 -4 ------------ Run | Yrd Mat Mat Mat Fac Gar Fac Low Low Fac Gar Fac Fac Ext Fac Used RIF Installer 2 | . . . . . 1 . . . . 1 . . . . Watcher Feeds 1 | . . . . . . . . . . 1 . . . . Robots Hacked 1 | . . . . . . . . . . . . . . 1 Non-combat . | . . . . . . . . . . . . . . . Combat 1 | . . . . . . . . . . . . . . 1 Robot Hacks Applied 1 | . . . . . . . . . . . . . . 1 streamctrl_high 1 | . . . . . . . . . . . . . . 1 Relay Couplers Released 13 | . . . . . 5 . . . . 8 . . . . Machine Destruction 13 | . . . . . 5 . . . . 8 . . . . Attached 4 | . . . . . . . . . . . . 1 . 3 Fabnet Peak Effective % . | . . . . . . . . . . . . . . . Robots Rewired 13 | . . . . . 3 . . . . 7 . . 3 . Allies Hacked 1 | . . . . . . . . . . . . . . 1 Hacks Repelled . | . . . . . . . . . . . . . . . Allies | -11 -10 -9 -8 -7 -7 -7 -7 -7 -6 -6 -6 -5 -5 -4 -------- Run | Yrd Mat Mat Mat Fac Gar Fac Low Low Fac Gar Fac Fac Ext Fac Total Allies 18 | . . . . . 3 . . . . 9 . . 5 1 Largest Group 7 | . . . . . 3 . . . . 7 2 2 5 1 Highest-Rated Group 239 | . . . . . 90 . . . . 239 172 172 160 47 Highest-Rated Ally 95 | . . . . . 30 . . . . 95 95 95 39 47 Total Orders . | . . . . . . . . . . . . . . . Ally Attacks 210 | . . . . . 16 . . . . 78 . 1 105 10 Total Damage 4522 | . . . . . 439 . . . . 1948 . 27 1811 297 Kills 41 | . . . . . 5 . . . . 23 . . 9 4 Allies Corrupted 2 | . . . . . . . . . . 2 . . . . Allies Melted . | . . . . . . . . . . . . . . . Intel | -11 -10 -9 -8 -7 -7 -7 -7 -7 -6 -6 -6 -5 -5 -4 ------- Run | Yrd Mat Mat Mat Fac Gar Fac Low Low Fac Gar Fac Fac Ext Fac Active Infowar (turns) 7407 | 32 360 436 1691 . . . . . 684 324 90 1077 610 2103 Sensors 686 | . . . . . . . . . 684 2 . . . . Seismic 5575 | 32 360 436 1691 . . . . . . . . 1077 493 1486 Jamming 2829 | . . . . . . . . . . . . 650 610 1569 ECM 2061 | . . . . . . . . . . 322 90 1077 572 . Robot Analysis Total . | . . . . . . . . . . . . . . . Derelict Logs Recovered 2 | . . . . . . . 1 1 . . . . . . Drone Launches . | . . . . . . . . . . . . . . . Drone Recoveries . | . . . . . . . . . . . . . . . Exploration | -11 -10 -9 -8 -7 -7 -7 -7 -7 -6 -6 -6 -5 -5 -4 ------------- Run | Yrd Mat Mat Mat Fac Gar Fac Low Low Fac Gar Fac Fac Ext Fac Turns Passed 13089 | 92 360 436 2471 175 1368 211 763 188 812 2282 130 1077 610 2114 Spaces Moved 6617 | 45 194 189 844 85 662 181 590 118 443 1122 84 615 312 1133 Core 74 | 5 . . . . . . . . . . . . . 69 Treads 3339 | 40 194 189 844 85 538 . . . . . . 407 312 730 Legs 361 | . . . . . . . . . . 361 . . . . Wheels 2843 | . . . . . 124 181 590 118 443 761 84 208 . 334 Hover . | . . . . . . . . . . . . . . . Flight . | . . . . . . . . . . . . . . . Fastest Speed 50 | 50 160 160 170 170 101 101 101 160 101 100 145 145 160 50 Average Speed 161 | 147 160 193 249 170 160 101 120 160 154 151 145 154 160 139 Slowest Speed 400 | 160 160 240 250 170 250 101 160 160 160 400 145 160 160 240 Overloaded Moves . | . . . . . . . . . . . . . . . Propulsion Burnouts . | . . . . . . . . . . . . . . . Robots Hopped . | . . . . . . . . . . . . . . . Potential Cave-ins . | . . . . . . . . . . . . . . . Cave-ins Triggered . | . . . . . . . . . . . . . . . Exploration Rate (%) 32 | 4 46 32 68 3 55 6 64 19 10 89 5 14 45 32 Regions Visited 14 Branch Regions 3 Pre-discovered Areas . | . . . . . . . . . . . . . . . Known Exits Taken 3 | . . . . 1 . . . 1 1 . . . . . Unknown Exits Taken 9 | 1 1 1 1 . . 1 1 . . . 1 1 1 . Scrap Searched 4 | . . . . . . . 4 . . . . . . . Spaces Dug 2 | . . . . . . . . . . . . . . 2 Terrain Destroyed 211 | . . . 35 9 52 . 12 . 17 47 . 7 6 26 Melee . | . . . . . . . . . . . . . . . Projectile 43 | . . . . . . . 2 . 17 3 . 5 6 10 AOE 168 | . . . 35 9 52 . 10 . . 44 . 2 . 16 Terrain Rammed . | . . . . . . . . . . . . . . . Walls Destroyed . | . . . . . . . . . . . . . . . Machines Disabled . | . . . . . . . . . . . . . . . Actions | -11 -10 -9 -8 -7 -7 -7 -7 -7 -6 -6 -6 -5 -5 -4 --------- Run | Yrd Mat Mat Mat Fac Gar Fac Low Low Fac Gar Fac Fac Ext Fac Total 8092 | 60 235 232 1087 101 819 197 616 117 511 1474 92 726 385 1440 Wait 444 | . 22 6 134 . 22 . . . 13 44 . 59 38 106 Move 6605 | 44 193 188 843 85 661 180 589 117 443 1121 83 614 311 1133 Hop . | . . . . . . . . . . . . . . . Pick Up 120 | 4 11 11 15 4 4 6 3 . 9 25 . 10 . 18 Fast Attach 66 | 7 . . 2 . 5 3 2 . 7 20 . 3 3 14 Attach 91 | . . 2 8 2 21 1 4 . 1 28 . 6 . 18 Detach 25 | . . . . . 9 1 2 . . 9 . 2 . 2 Swap 64 | 1 1 3 10 2 13 . . . 1 14 1 4 5 9 Drop 70 | . 2 6 13 2 4 . 1 . 5 6 . 10 5 16 Fire 401 | 4 6 16 61 6 52 4 15 . 32 78 . 8 17 102 Melee 92 | . . . . . 19 2 . . . 65 . . 5 1 Ram 11 | . . . . . . . . . . . . . . 11 Kick . | . . . . . . . . . . . . . . . Crush 14 | . . . 1 . . . . . . . . 2 1 10 Escape Stasis 40 | . . . . . . . . . . 24 8 8 . . Rewire 49 | . . . . . 9 . . . . 40 . . . . Trap . | . . . . . . . . . . . . . . . Miscellaneous . | . . . . . . . . . . . . . . . Route ------- -11/Scrapyard -10/Materials -9/Materials -8/Materials -7/Factory (discovered 2 exits: *Fac / Gar) -7/Garrison (discovered 2 exits: *Fac x2) -7/Factory -7/Lower Caves -7/Lower Caves -6/Factory -6/Garrison (discovered 3 exits: [*Fac x3]) -6/Factory -5/Factory -5/Extension -4/Factory History --------- Turn | Location | Event 8 | -11/Scrapyard | Discovered new exit (range 15) 93 | -11/Scrapyard | Entered Materials 301 | -10/Materials | Build established: Mutant 422 | -10/Materials | Discovered new exit (range 15) 453 | -10/Materials | Entered another Materials area 453 | -9/Materials | Evolved 2 slots: Power x1, Weapon x1 745 | -9/Materials | Build established: Gunner 855 | -9/Materials | Discovered new exit (range 10) 889 | -9/Materials | Entered another Materials area 889 | -8/Materials | Evolved 2 slots: Propulsion x1, Utility x1 3245 | -8/Materials | Discovered new exit (range 15) 3360 | -8/Materials | Entered Factory 3360 | -7/Factory | Evolved 2 slots: Propulsion x1, Utility x1 3400 | -7/Factory | Discovered new exit (range 14) 3535 | -7/Factory | Identified exit to Garrison 3535 | -7/Factory | Entered Garrison 3733 | -7/Garrison | Triggered checkpoint 3867 | -7/Garrison | Triggered checkpoint 3874 | -7/Garrison | Garrison Relay disabled 3915 | -7/Garrison | Installed Relay Interface Framework 4113 | -7/Garrison | Triggered checkpoint 4209 | -7/Garrison | Discovered new exit (range 13) 4249 | -7/Garrison | Triggered checkpoint 4287 | -7/Garrison | Triggered checkpoint 4334 | -7/Garrison | Lost 4 parts (1p1n1u1w) 4517 | -7/Garrison | Triggered checkpoint 4589 | -7/Garrison | Triggered checkpoint 4633 | -7/Garrison | Triggered checkpoint 4637 | -7/Garrison | Lost 3 allies 4695 | -7/Garrison | Destroyed 7 combat bots 4835 | -7/Garrison | Discovered new exit (range 13) 4879 | -7/Garrison | Core integrity fell below 50% 4881 | -7/Garrison | Triggered checkpoint 4903 | -7/Garrison | Entered Factory 4925 | -7/Factory | Lost 9 parts (2p2n1u4w) 5063 | -7/Factory | Discovered new exit (range 15) 5114 | -7/Factory | Entered Lower Caves 5189 | -7/Lower Caves | Attacked by a faux Warlord 5332 | -7/Lower Caves | Learned 4 Factory zone layouts 5489 | -7/Lower Caves | Lost 4 parts (1p1u2w) 5568 | -7/Lower Caves | Encountered a Warlord checkpoint 5756 | -7/Lower Caves | Build established: Mutant 5870 | -7/Lower Caves | Discovered new exit (range 5) 5877 | -7/Lower Caves | Entered another Lower Caves area 5980 | -7/Lower Caves | Identified exit to Factory 6065 | -7/Lower Caves | Entered Factory 6065 | -6/Factory | Evolved 2 slots: Utility x2 6562 | -6/Factory | Build established: Skirmisher 6763 | -6/Factory | Garrison activated, responded to threat 6877 | -6/Factory | Identified exit to Garrison 6877 | -6/Factory | Entered Garrison 6976 | -6/Garrison | Lost 7 parts (3n1u3w) 7199 | -6/Garrison | Triggered checkpoint 7230 | -6/Garrison | Garrison Relay disabled 7515 | -6/Garrison | Triggered checkpoint 7522 | -6/Garrison | Triggered checkpoint 7574 | -6/Garrison | Triggered checkpoint 7577 | -6/Garrison | Lost 4 allies 7585 | -6/Garrison | Triggered checkpoint 7611 | -6/Garrison | Core integrity fell below 50% 7629 | -6/Garrison | Lost 3 allies 7655 | -6/Garrison | Lost 6 parts (1p1n1u3w) 7899 | -6/Garrison | Discovered new exit (range 10) 7933 | -6/Garrison | Expanded RIF knowledge: Watcher Feeds 8015 | -6/Garrison | Build established: Scavenger-Gunner 8275 | -6/Garrison | Spotted B-75 Beast 8305 | -6/Garrison | Garrison Relay disabled 8466 | -6/Garrison | Core integrity fell below 20% 8503 | -6/Garrison | Destroyed B-75 Beast 8531 | -6/Garrison | Lost 14 parts (2p4n4u4w) 8642 | -6/Garrison | Found embedded Infiltrators 8779 | -6/Garrison | Discovered new exit (range 10) 8790 | -6/Garrison | Build established: Scavenger-Tank 8964 | -6/Garrison | Triggered checkpoint 9144 | -6/Garrison | Discovered new exit (range 10) 9159 | -6/Garrison | Entered Factory 9159 | -6/Factory | Accompanied by 2 allies 9220 | -6/Factory | Build established: Bothacker-Tank 9272 | -6/Factory | Discovered new exit (range 13) 9289 | -6/Factory | Entered another Factory area 9289 | -5/Factory | Accompanied by 2 allies 9289 | -5/Factory | Evolved 2 slots: Utility x2 10003 | -5/Factory | Build established: Bothacker-Gunner 10342 | -5/Factory | Discovered new exit (range 15) 10366 | -5/Factory | Entered Extension 10577 | -5/Extension | Rescued a captive Derelict 10578 | -5/Extension | Rescued a captive Derelict 10838 | -5/Extension | Spotted B-75 Beast 10873 | -5/Extension | Allies destroyed B-75 Beast 10882 | -5/Extension | Spotted B-75 Beast 10913 | -5/Extension | Lost 4 allies 10925 | -5/Extension | Destroyed B-75 Beast 10973 | -5/Extension | Discovered new exit (range 3) 10976 | -5/Extension | Entered Factory 10976 | -4/Factory | Accompanied by 1 ally 10976 | -4/Factory | Evolved 2 slots: Utility x2 12514 | -4/Factory | System corruption reached 10% 12576 | -4/Factory | Lost 4 parts (3n1u) 12700 | -4/Factory | Lost 7 parts (1p3n2u1w) 13052 | -4/Factory | Core integrity fell below 50% 13080 | -4/Factory | Lost 8 parts (1p3n1u3w) 13082 | -4/Factory | Spotted B-86 Titan 13087 | -4/Factory | Core integrity fell below 20% 13090 | -4/Factory | Destroyed by B-86 Titan with Hardcell Cannon Last Messages --------------- 13078_ Slug penetrates Repair Station. 13079_ System corrupted: Heat flow error (+204). 13081_ K-01 Serf cleans the Nuclear Reactor. 13084_ >> Watcher Feeds: Established visual feed link with W-44 Eye. 13084_ K-01 Serf cleans the Nuclear Reactor. 13084_ Nuclear Reactor explodes. 13084_ Penetrated by Slug. 13086_ Nuclear Reactor explodes. 13086_ K-01 Serf destroyed. 13086_ Relay Coupler [Hunter] destroyed. 13086_ Seismic Detector destroyed. 13087_ Knocked back. 13087_ Penetrated by Slug. 13087_ Adv. Heat Sink destroyed. 13088_ Nuclear Reactor explodes. 13088_ >> Watcher Feeds: Established visual feed link with W-44 Eye. 13088_ Penetrated by Slug. 13089_ Drone sends a signal. Map ----- +----------------------------------------------------+ | #%#??????#########???????########?????? | | # #??????# ##??????# ####### | | # ######## "#??????# + | | ####/#######%# # "" #???????# ####### | | ?# #?# # # " # "" #??###### #?????? | | ?# #?# # # # T #??# + #?????? | | ?# #####%#""" # " #??# # #?????? | | ## % + # ##?# ##########???? | | ##### # # % *### w #???? | | ### # ######## % !#!## % #???? | | #?### %!!%%= ]*%%R%= ##### | | """" #???####%####################### | | """" #??????# ########## # ##### | | """" #??????# ## # """"""" # #???? | | """" ########+## """ # """"""" # #???? | | # """" %## """ # """"""" # #???? | | """" # """" ## """ # """"""" # #???? | | """" # """" ## # # #???? | | """" # """" ## """ # """"""" # #???? | | """" # ## """ # """"""" # ##### | | # ## """ # """"""" # # | | """" # ## # """"""" # # | | """" # ## # # # | | """" # ## # # " """ | | """" ###+#############+# ### # """ | | @ % hh # """ | | """" ##### | | """" ^ """ """ #???? | | """" """ """ #???? | | """" k ^ w """ R" ##### | | ################ """ | | """" #?????????????# "" | | """" #????????????# BB | | """" #????????????# BB | | """" #???########### | | #?? ?# # | | """" #?? ???## # | | """" #? ]= ???# # T# #+########## | | """" #? """ ]= ??### ##### ???????? | | """" # """ == ????######???# ?????? | | # """ #????????????# ???? | | """" / #????????????# """ """" #??? | | """" # """ """ #????????????# """ """" #??? | | """" # """ ""???????????????# """ """" #??? | | """" #? """ ""???????????????# """" #??? | | #? ??????????????# ""??????? | | """" #?? ???????????????? ? ""??????? | | """" #??#########??????????????? ? ???????? | | """" #?????????????????????????? ?! ???????? | | """" #?????????????????????????? ? ???????? | +----------------------------------------------------+ Best States ------------- Heat Dissipation 81 Coolant Potential 100 Energy Generation 37 Energy Capacity 510 Matter Stores 300 Matter Capacity 300 Sight Range 16 Robot Scan Range 15 Terrain Scan Density 10 ECM Strength 2 Jamming Range 12 Armor Coverage 225 Core Shielding 30 Evasion (%) 50 Targeting Accuracy 16 Core Analysis 6 Armor Integrity Analysis 30 Recoil Reduction 4 Energy Filtering 30 Offensive Hacking 40 Relay Coupler Types 4 Relay Coupler Value 71 Item Schematics ----------------- None Robot Schematics ------------------ None Fabricated ------------ Nothing Repaired ---------- Nothing Studied --------- None Alien Tech Used ----------------- None Achievements -------------- None Challenges ------------ None Game ------ Seed SwordCoilMicrothruster Manual? 0 Play Time 01:48:25 Cumulative 145.1 hours Start 2026.08.30 @ 22:09:57 End 2026.09.01 @ 18:30:43 Sessions 7 Manual Loads 0 Difficulty Rogue Special Mode None Game No. 269 Rogue 269 Adventurer 0 Explorer 0 Win Type - Total 0 Types 0/0/0/0/0/0/0/0/0/0 Lore% 36 Gallery% 47 Achievement% 30 Wizard Run 0 Options --------- Layout 1 ASCII 0 Keyboard 1 Movement Arrows Keybinds 0 Fullscreen 2 Font 24/Smallcaps Map View 50x35 Zoom Use 0% Tactical HUD 1 Map Filters NONE Filters NONE Steam 1 RUN: 994eac05-fc74-40a9-832e-a14c828aab64